fUST/lending_fUST_20250407
["ID","MTS","AMOUNT","RATE_DAILY","PERIOD"]
[357291965,1743987047053,-500.0,0.00041073,5]
[357291966,1743987047062,-500.0,0.00041073,5]
[357291967,1743987047071,-500.0,0.00041073,5]
[357291968,1743987047081,-3587.41514922,0.00041085,3]
[357291969,1743987047090,-16193.34097463,0.00041095,3]
[357291970,1743987047109,-11032.99938898,0.00041095,3]
[357291971,1743987047119,-281833.55822514,0.00041095,3]
[357291972,1743987047235,-4519.94841129,0.00041095,3]
[357291980,1743988043101,-230.93942374,0.00023944,2]
[357291981,1743988047559,-238.305508,0.00023151,2]
[357291982,1743988060144,-261.694492,0.00023151,2]
[357291983,1743988060166,-41.32532526,0.0002355,2]
[357291985,1743988163097,-367.9640927,0.0002355,2]
[357292015,1743988231944,-90.71058204,0.0002355,2]
[357292016,1743988231955,-300.0,0.00024999,2]
[357292017,1743988231966,-1309.28941796,0.00025,2]
[357292018,1743988231979,-605.45,0.00025,2]
[357292074,1743988237705,-769.48521584,0.00025,2]
[357292075,1743988237716,-989.96187217,0.00025,2]
[357292076,1743988237761,-6325.81349403,0.00025,2]
[357292077,1743988237771,-500.0,0.00025671,2]
[357292078,1743988237781,-673.34782777,0.000259,6]
[357292079,1743988237791,-155.24,0.000266,31]
[357292080,1743988237801,-673.34782768,0.00026624,6]
[357292081,1743988237810,-420.0,0.00027082,2]
[357292082,1743988237820,-673.34782768,0.00027348,7]
[357292083,1743988237830,-500.0,0.00027397,5]
[357292084,1743988237839,-152.0,0.00027803,2]
[357292085,1743988237849,-1298.87235091,0.00028307,2]
[357292087,1743988237858,-500.0,0.00028683,2]
[357292089,1743988237868,-3852.1997246,0.00029,7]
[357292137,1743988240175,-673.34782768,0.00028072,7]
[357292138,1743988240185,-673.34782768,0.00028797,8]
[357292139,1743988240195,-1310.96784555,0.00029,7]
[357292140,1743988240207,-5163.16757015,0.00029,7]
[357292141,1743988240217,-160.0,0.00029,7]
[357292142,1743988240226,-677.08333333,0.00029,7]
[357292143,1743988240236,-160.0,0.00029513,2]
[357292144,1743988240245,-673.34782768,0.00029521,8]
[357292145,1743988240255,-500.0,0.00029632,2]
[357292146,1743988240265,-171.469887,0.0002978,120]
[357292147,1743988240274,-673.34782768,0.00030245,9]
[357292148,1743988240284,-673.34782768,0.00030969,9]
[357292149,1743988240294,-500.0,0.00031095,7]
[357292150,1743988240304,-948.53550917,0.00031187,2]
[357292151,1743988240314,-155.24,0.000315,31]
[357292152,1743988240323,-155.24,0.000315,31]
[357292153,1743988240333,-500.0,0.0003195,7]
[357292154,1743988240343,-577.01709451,0.0003211,7]
[357292155,1743988240352,-252.21462521,0.00032559,2]
[357292156,1743988240362,-1000.0,0.00032877,5]
[357292157,1743988240371,-163.0,0.00033,2]
[357292158,1743988240381,-163.0,0.00033151,2]
[357292159,1743988240390,-948.5355091,0.00033323,2]
[357292160,1743988240399,-500.0,0.00033411,7]
[357292161,1743988240410,-201.75659287,0.00034099,10]
[357292162,1743988240419,-500.0,0.0003411,7]
[357292163,1743988240429,-163.0,0.00034521,2]
[357292164,1743988240439,-1249.61528335,0.00035172,2]
[357292165,1743988240449,-12525.30748765,0.0003526,7]
[357292166,1743988240458,-948.5355091,0.00035458,2]
[357292167,1743988240468,-1000.0,0.0003589,2]
[357292168,1743988240477,-419.28457398,0.00036065,2]
[357292169,1743988240487,-155.24,0.000364,31]
[357292170,1743988240496,-155.24,0.000364,31]
[357292171,1743988240506,-948.5355091,0.00037594,2]
[357292172,1743988240516,-630.848,0.00037933,50]
[357292173,1743988240525,-153.0,0.00038086,31]
[357292174,1743988240535,-153.0,0.00038086,31]
[357292175,1743988240548,-1500.0,0.00038356,5]
[357292176,1743988240558,-500.0,0.00039222,7]
[357292177,1743988240567,-221.96895726,0.00039678,3]
[357292178,1743988240577,-500.0,0.00039686,15]
[357292179,1743988240587,-500.0,0.00039686,2]
[357292180,1743988240596,-500.0,0.00039686,2]
[357292181,1743988240605,-500.0,0.00039686,2]
[357292182,1743988240615,-500.0,0.00039686,2]
[357292183,1743988240626,-500.0,0.00039686,2]
[357292184,1743988240636,-500.0,0.00039686,2]
[357292185,1743988240645,-500.0,0.00039686,2]
[357292186,1743988240655,-390.52532318,0.00039686,2]
[357292187,1743988240664,-500.0,0.00039686,2]
[357292188,1743988240674,-500.0,0.00039686,2]
[357292189,1743988240683,-500.0,0.00039686,2]
[357292190,1743988240693,-500.0,0.00039686,2]
[357292191,1743988240706,-500.0,0.00039686,2]
[357292192,1743988240716,-500.0,0.00039686,2]
[357292193,1743988240726,-500.0,0.00039686,2]
[357292194,1743988240735,-500.0,0.00039686,2]
[357292195,1743988240745,-500.0,0.00039686,2]
[357292196,1743988240755,-500.0,0.00039686,2]
[357292197,1743988240765,-500.0,0.00039686,2]
[357292198,1743988240775,-500.0,0.00039686,2]
[357292199,1743988240785,-41389.77107503,0.00039688,5]
[357292200,1743988240794,-160.0,0.00039688,3]
[357292201,1743988240804,-948.5355091,0.0003973,2]
[357292202,1743988240814,-12525.30748765,0.00039889,3]
[357292203,1743988240823,-160.0,0.00039889,3]
[357292204,1743988240833,-677.08333333,0.00039889,3]
[357292205,1743988240842,-416.3223404,0.00039889,3]
[357292206,1743988240852,-2000.0,0.0004,15]
[357292207,1743988240862,-2000.0,0.0004,15]
[357292208,1743988240871,-2000.0,0.0004,15]
[357292209,1743988240881,-2000.0,0.0004,15]
[357292210,1743988240890,-2000.0,0.0004,15]
[357292211,1743988240900,-1100.0,0.0004,15]
[357292212,1743988240910,-2000.0,0.000405,15]
[357292213,1743988240920,-200.0,0.0004097,2]
[357292214,1743988240929,-173.90113716,0.00040973,2]
[357292215,1743988240939,-665.90687178,0.00040985,3]
[357292216,1743988240951,-404.69012271,0.00040994,31]
[357292217,1743988240960,-500.0,0.00040994,31]
[357292218,1743988240970,-168.26134189,0.00040994,31]
[357292219,1743988240979,-64194.31263374,0.00040995,2]
[357292220,1743988241061,-485.80962188,0.00040995,2]
[357292233,1743988246017,-673.34782768,0.00031693,10]
[357292234,1743988246026,-673.34782768,0.00032417,10]
[357292235,1743988246035,-673.34782768,0.00033141,11]
[357292236,1743988246045,-673.34782768,0.00033866,11]
[357292237,1743988246054,-673.34782768,0.0003459,12]
[357292238,1743988246063,-673.34782768,0.00035314,12]
[357292239,1743988246072,-673.34782768,0.00036038,13]
[357292240,1743988246081,-168.0,0.00036247,2]
[357292241,1743988246090,-673.34782768,0.00036762,13]
[357292242,1743988246100,-673.34782768,0.00037486,13]
[357292243,1743988246109,-673.34782768,0.0003821,14]
[357292244,1743988246119,-673.34782768,0.00038934,14]
[357292245,1743988246128,-673.34782768,0.00039659,15]
[357292246,1743988246138,-163.0,0.00039871,14]
[357292247,1743988246147,-673.34782768,0.00040383,15]
[357292248,1743988246157,-33193.83853685,0.00040995,2]
[357292256,1743988434721,344.35595155,0.00025,120]
[357292264,1743988806082,746.9192,0.00025,120]
[357292268,1743989250351,-500.0,0.00023704,2]
[357292269,1743989250375,-500.0,0.0002443,2]
[357292270,1743989250398,-500.0,0.00024535,2]
[357292271,1743989250428,-154.73,0.000266,31]
[357292272,1743989250450,-500.0,0.0002664,2]
[357292273,1743989250472,-500.0,0.00026657,2]
[357292274,1743989250494,-238.305508,0.0002713,2]
[357292275,1743989250516,-300.0,0.00027396,2]
[357292276,1743989250537,-1388.61865253,0.00027397,2]
[357292296,1743989300439,408.82038568,0.0001399,2]
[357292299,1743989327251,-159.17044552,0.0002,7]
[357292301,1743989327884,-500.0,0.00022,2]
[357292319,1743989357148,-2464.73608733,0.00022,2]
[357292343,1743989432175,-62.36391267,0.00022,2]
[357292344,1743989432184,-500.0,0.00024374,2]
[357292345,1743989432194,-500.0,0.00024824,2]
[357292346,1743989432204,-500.0,0.00025143,2]
[357292347,1743989432214,-500.0,0.00025603,2]
[357292348,1743989432223,-500.0,0.000258,2]
[357292349,1743989432232,-500.0,0.00026201,2]
[357292350,1743989432242,-158.27,0.000266,31]
[357292351,1743989432251,-300.0,0.00027396,2]
[357292353,1743989432262,-4750.30474341,0.00027397,2]
[357292354,1743989432272,-500.0,0.00027397,5]
[357292355,1743989432511,-877.2136,0.00027541,2]
[357292356,1743989432521,-7505.99435976,0.00027541,15]
[357292357,1743989432531,-499.30794418,0.000279,7]
[357292358,1743989432540,-499.30794412,0.00028555,8]
[357292359,1743989432551,-833.53177531,0.00029,10]
[357292360,1743989432560,-499.30794412,0.0002921,8]
[357292361,1743989432570,-160.0,0.00029543,2]
[357292362,1743989432582,-160.0,0.00029567,2]
[357292363,1743989432592,-223.0,0.00029606,2]
[357292364,1743989432602,-200.0,0.00029699,2]
[357292365,1743989432612,-24900.0,0.00029717,2]
[357292366,1743989432622,-500.0,0.00029821,2]
[357292367,1743989432635,-499.30794412,0.00029866,8]
[357292368,1743989432644,-3537.44352993,0.000299,120]
[357292369,1743989432654,-933.06745951,0.0003,2]
[357292370,1743989432664,-499.30794412,0.00030521,9]
[357292371,1743989432673,-207.4,0.00031068,2]
[357292372,1743989432683,-499.30794412,0.00031176,9]
[357292373,1743989432693,-500.0,0.00031462,7]
[357292374,1743989432702,-158.27,0.000315,31]
[357292375,1743989432712,-158.27,0.000315,31]
[357292376,1743989432722,-499.30794412,0.00031831,10]
[357292377,1743989432731,-215.0738,0.00032437,2]
[357292378,1743989432741,-499.30794412,0.00032486,10]
[357292379,1743989432751,-500.0,0.00032631,7]
[357292380,1743989432761,-500.0,0.00032732,7]
[357292381,1743989432771,-1000.0,0.00032877,5]
[357292382,1743989432780,-161.0,0.00033,2]
[357292383,1743989432790,-499.30794412,0.00033141,11]
[357292384,1743989432799,-500.0,0.00033334,7]
[357292385,1743989432809,-499.30794412,0.00033797,11]
[357292386,1743989432818,-223.0315306,0.00033806,2]
[357292387,1743989432828,-499.30794412,0.00034452,11]
[357292388,1743989432837,-18042.43982678,0.0003499,30]
[357292389,1743989432847,-4896.12111245,0.00035,120]
[357292390,1743989432857,-499.30794412,0.00035107,12]
[357292391,1743989432867,-231.28369723,0.00035175,2]
[357292392,1743989432876,-499.30794412,0.00035762,12]
[357292393,1743989432888,-1000.0,0.0003589,2]
[357292394,1743989432901,-155.0,0.00036,2]
[357292395,1743989432911,-158.27,0.000364,31]
[357292396,1743989432921,-158.27,0.000364,31]
[357292397,1743989432931,-499.30794412,0.00036417,13]
[357292398,1743989432941,-239.84119403,0.00036544,2]
[357292399,1743989432952,-499.30794412,0.00037072,13]
[357292400,1743989432961,-155.0,0.00037397,2]
[357292401,1743989432971,-499.30794412,0.00037728,14]
[357292402,1743989432980,-504.678,0.00037911,50]
[357292403,1743989432991,-248.71531821,0.00037913,2]
[357292404,1743989433000,-500.0,0.00037993,7]
[357292405,1743989433010,-1500.0,0.00038356,5]
[357292406,1743989433020,-499.30794412,0.00038383,14]
[357292407,1743989433030,-555.541,0.00039,120]
[357292408,1743989433040,-499.30794412,0.00039038,14]
[357292409,1743989433050,-160.0,0.00039205,3]
[357292410,1743989433060,-159.0,0.00039267,14]
[357292411,1743989433070,-420.24727888,0.00039282,2]
[357292412,1743989433079,-420.47256183,0.00039284,6]
[357292413,1743989433089,-2975.0,0.0003951,2]
[357292414,1743989433099,-500.0,0.00039567,7]
[357292415,1743989433109,-499.30794412,0.00039693,15]
[357292416,1743989433119,-5134.95876521,0.0004,30]
[357292417,1743989433129,-1221.98,0.0004,2]
[357292418,1743989433139,-2000.0,0.0004,2]
[357292419,1743989433148,-9009.58351785,0.0004,120]
[357292420,1743989433161,-5828.45830811,0.0004,120]
[357292421,1743989433171,-2429.92911583,0.0004,120]
[357292422,1743989433180,-1730.46152425,0.0004,60]
[357292423,1743989433190,-4044.7435566,0.0004,120]
[357292424,1743989433199,-160.0,0.00040196,4]
[357292425,1743989433209,-499.30794412,0.00040348,15]
[357292426,1743989433218,-177.57516581,0.00040537,3]
[357292427,1743989433228,-500.0,0.00040547,60]
[357292428,1743989433238,-500.0,0.00040547,60]
[357292429,1743989433248,-500.0,0.00040547,60]
[357292430,1743989433258,-500.0,0.00040547,60]
[357292431,1743989433268,-753.91299545,0.00040684,2]
[357292432,1743989433278,-160.0,0.00040758,2]
[357292433,1743989433288,-3009.45425325,0.000408,48]
[357292434,1743989433299,-2000.0,0.000408,30]
[357292435,1743989433308,-291.66973213,0.00040973,2]
[357292436,1743989433318,-291.66973211,0.00040979,2]
[357292437,1743989433328,-291.66973211,0.00040984,2]
[357292438,1743989433338,-177.57516581,0.00040985,3]
[357292439,1743989433347,-291.66973211,0.0004099,2]
[357292440,1743989433357,-151.0,0.00040994,2]
[357292441,1743989433367,-175.36313937,0.00040994,2]
[357292442,1743989433377,-344.18883964,0.00040994,31]
[357292443,1743989433391,-467.78293933,0.00040994,31]
[357292444,1743989433401,-291.66973211,0.00040995,2]
[357292445,1743989433412,-18937.07063021,0.00040995,2]
[357292446,1743989433432,-48057.34528727,0.00040995,2]
[357292447,1743989433442,-1400.0,0.00041,7]
[357292448,1743989433452,-1192.0,0.00041,2]
[357292449,1743989433462,-1515.0,0.00041,2]
[357292450,1743989433473,-499.30794412,0.00041003,16]
[357292451,1743989433482,-641.40568929,0.00041073,5]
[357292452,1743989433492,-581.72444124,0.00041073,5]
[357292453,1743989433502,-500.1702032,0.00041073,5]
[357292454,1743989433512,-500.0,0.00041073,5]
[357292455,1743989433522,-552.73632071,0.00041073,2]
[357292456,1743989433532,-150.50311698,0.00041073,5]
[357292457,1743989433542,-500.0,0.00041073,5]
[357292458,1743989433552,-500.0,0.00041073,5]
[357292459,1743989433563,-500.0,0.00041073,5]
[357292460,1743989433573,-500.0,0.00041073,5]
[357292461,1743989433583,-500.0,0.00041073,5]
[357292462,1743989433593,-495.84145596,0.00041073,5]
[357292463,1743989433603,-500.0,0.00041073,5]
[357292464,1743989433613,-500.0,0.00041073,5]
[357292465,1743989433623,-500.0,0.00041073,5]
[357292466,1743989433634,-500.0,0.00041073,2]
[357292467,1743989433644,-500.0,0.00041073,5]
[357292468,1743989433654,-500.0,0.00041073,5]
[357292469,1743989433664,-327.52066194,0.00041073,5]
[357292470,1743989433674,-500.0,0.00041073,5]
[357292471,1743989433684,-500.0,0.00041073,5]
[357292472,1743989433695,-500.21447099,0.00041073,5]
[357292473,1743989433706,-500.0,0.00041073,5]
[357292474,1743989433716,-504.38089535,0.00041073,2]
[357292475,1743989433725,-503.59398376,0.00041073,5]
[357292476,1743989433735,-500.0,0.00041073,5]
[357292477,1743989433745,-500.0,0.00041073,5]
[357292478,1743989433755,-177.57516581,0.00041084,3]
[357292479,1743989433764,-887.87582905,0.00041085,3]
[357292480,1743989433774,-2130.90198972,0.00041085,3]
[357292481,1743989433784,-677.08333333,0.00041094,3]
[357292482,1743989433793,-18133.39284939,0.00041094,3]
[357292483,1743989433803,-235004.64506569,0.00041094,3]
[357292484,1743989433812,-12520.15255516,0.00041094,3]
[357292485,1743989433822,-160.0,0.00041095,3]
[357292486,1743989433832,-500.0,0.00041095,7]
[357292487,1743989433842,-500.0,0.00041095,7]
[357292488,1743989433852,-1000.0,0.00041095,3]
[357292489,1743989433862,-5000.0,0.00041095,120]
[357292490,1743989433871,-500.0,0.00041095,7]
[357292491,1743989433881,-500.0,0.00041095,7]
[357292492,1743989433891,-500.0,0.00041095,7]
[357292493,1743989433900,-500.0,0.00041095,7]
[357292494,1743989433910,-500.0,0.00041095,7]
[357292495,1743989433921,-500.0,0.00041095,7]
[357292496,1743989433930,-500.0,0.00041095,7]
[357292497,1743989433940,-500.0,0.00041095,7]
[357292498,1743989433949,-500.0,0.00041095,7]
[357292499,1743989433959,-500.0,0.00041095,7]
[357292500,1743989433969,-500.0,0.00041095,7]
[357292501,1743989433978,-500.0,0.00041095,7]
[357292502,1743989433991,-500.0,0.00041095,7]
[357292503,1743989434001,-500.0,0.00041095,7]
[357292504,1743989434010,-502.39253075,0.00041095,7]
[357292505,1743989434020,-500.0,0.00041095,7]
[357292506,1743989434029,-500.0,0.00041095,7]
[357292507,1743989434039,-500.0,0.00041095,7]
[357292508,1743989434048,-500.0,0.00041095,7]
[357292509,1743989434058,-500.0,0.00041095,7]
[357292510,1743989434068,-151.0,0.00041095,14]
[357292511,1743989434078,-151.0,0.00041095,14]
[357292512,1743989434087,-500.0,0.00041095,7]
[357292513,1743989434097,-501.57058108,0.00041095,7]
[357292514,1743989434106,-500.0,0.00041095,7]
[357292515,1743989434115,-532.57943491,0.00041095,7]
[357292516,1743989434125,-502.03179531,0.00041095,7]
[357292517,1743989434134,-500.0,0.00041095,7]
[357292518,1743989434144,-504.68268634,0.00041095,7]
[357292519,1743989434154,-502.27480786,0.00041095,7]
[357292520,1743989434163,-500.0,0.00041095,7]
[357292521,1743989434173,-500.0,0.00041095,7]
[357292522,1743989434182,-507.2953488,0.00041095,7]
[357292523,1743989434192,-503.8368794,0.00041095,7]
[357292524,1743989434201,-500.0,0.00041095,7]
[357292525,1743989434211,-500.0,0.00041095,7]
[357292526,1743989434220,-200.31335123,0.00041095,7]
[357292527,1743989434230,-500.0,0.00041095,7]
[357292528,1743989434240,-500.0,0.00041095,7]
[357292529,1743989434250,-500.25746751,0.00041095,7]
[357292530,1743989434259,-151.0,0.00041095,14]
[357292531,1743989434268,-151.0,0.00041095,14]
[357292532,1743989434278,-500.0,0.00041095,7]
[357292533,1743989434287,-500.0,0.00041095,7]
[357292534,1743989434297,-500.0,0.00041095,7]
[357292535,1743989434306,-500.0,0.00041095,7]
[357292536,1743989434316,-500.0,0.00041095,2]
[357292537,1743989434325,-515.90436927,0.00041095,7]
[357292538,1743989434335,-500.0,0.00041095,7]
[357292539,1743989434344,-500.0,0.00041095,7]
[357292540,1743989434354,-602.55,0.00041095,7]
[357292541,1743989434363,-500.0,0.00041095,7]
[357292542,1743989434373,-1145.87,0.00041095,7]
[357292543,1743989434384,-514.2669971,0.00041095,7]
[357292544,1743989434393,-500.0,0.00041095,7]
[357292545,1743989434403,-565.71552934,0.00041095,7]
[357292546,1743989434412,-500.0,0.00041095,7]
[357292547,1743989434421,-500.0,0.00041095,7]
[357292548,1743989434431,-500.0,0.00041095,7]
[357292549,1743989434441,-500.0,0.00041095,7]
[357292550,1743989434450,-500.0,0.00041095,7]
[357292551,1743989434460,-500.0,0.00041095,7]
[357292552,1743989434469,-500.0,0.00041095,7]
[357292553,1743989434479,-1000.0,0.00041095,7]
[357292554,1743989434489,-500.0,0.00041095,7]
[357292555,1743989434499,-300.0,0.00041095,30]
[357292556,1743989434508,-500.0,0.00041095,7]
[357292557,1743989434518,-500.0,0.00041095,7]
[357292558,1743989434528,-827.67,0.00041095,7]
[357292559,1743989434538,-500.0,0.00041095,7]
[357292560,1743989434547,-500.0,0.00041095,7]
[357292561,1743989434557,-500.0,0.00041095,7]
[357292562,1743989434568,-500.0,0.00041095,7]
[357292563,1743989434578,-524.48874337,0.00041095,7]
[357292564,1743989434588,-500.0,0.00041095,7]
[357292565,1743989434597,-500.0,0.00041095,7]
[357292566,1743989434607,-500.0,0.00041095,7]
[357292567,1743989434616,-500.0,0.00041095,7]
[357292568,1743989434626,-500.0,0.00041095,7]
[357292569,1743989434637,-500.0,0.00041095,7]
[357292570,1743989434646,-500.0,0.00041095,7]
[357292571,1743989434656,-500.0,0.00041095,7]
[357292572,1743989434665,-467.43050595,0.00041095,7]
[357292573,1743989434676,-600.43,0.00041095,7]
[357292574,1743989434685,-500.0,0.00041095,7]
[357292575,1743989434694,-500.0,0.00041095,7]
[357292576,1743989434705,-500.0,0.00041095,7]
[357292577,1743989434715,-521.87237248,0.00041095,7]
[357292578,1743989434724,-573.25,0.00041095,7]
[357292579,1743989434733,-500.0,0.00041095,7]
[357292580,1743989434743,-500.0,0.00041095,7]
[357292581,1743989434753,-500.0,0.00041095,7]
[357292582,1743989434763,-500.0,0.00041095,7]
[357292583,1743989434772,-500.0,0.00041095,7]
[357292584,1743989434782,-500.0,0.00041095,7]
[357292585,1743989434791,-500.0,0.00041095,7]
[357292586,1743989434800,-500.0,0.00041095,7]
[357292587,1743989434810,-500.0,0.00041095,7]
[357292588,1743989434820,-500.0,0.00041095,7]
[357292589,1743989434829,-500.0,0.00041095,7]
[357292590,1743989434839,-500.0,0.00041095,7]
[357292591,1743989434848,-500.0,0.00041095,7]
[357292592,1743989434858,-548.82181455,0.00041095,7]
[357292593,1743989434878,-500.0,0.00041095,7]
[357292594,1743989434887,-500.0,0.00041095,7]
[357292595,1743989434900,-500.0,0.00041095,7]
[357292596,1743989434910,-500.0,0.00041095,7]
[357292597,1743989434920,-510.61707463,0.00041095,7]
[357292598,1743989434930,-578.19,0.00041095,7]
[357292599,1743989434941,-510.74011637,0.00041095,7]
[357292600,1743989434951,-500.0,0.00041095,7]
[357292601,1743989434963,-500.0,0.00041095,7]
[357292602,1743989434973,-500.0,0.00041095,7]
[357292603,1743989434982,-500.0,0.00041095,7]
[357292604,1743989434993,-500.0,0.00041095,7]
[357292605,1743989435002,-500.0,0.00041095,7]
[357292606,1743989435011,-1000.0,0.00041095,7]
[357292607,1743989435020,-200.0,0.00041095,7]
[357292608,1743989435030,-500.0,0.00041095,7]
[357292609,1743989435042,-500.0,0.00041095,7]
[357292610,1743989435053,-500.0,0.00041095,7]
[357292611,1743989435062,-506.39612569,0.00041095,7]
[357292612,1743989435072,-500.0,0.00041095,7]
[357292613,1743989435082,-500.0,0.00041095,7]
[357292614,1743989435092,-500.0,0.00041095,7]
[357292615,1743989435102,-500.0,0.00041095,7]
[357292616,1743989435112,-500.0,0.00041095,7]
[357292617,1743989435121,-500.0,0.00041095,7]
[357292618,1743989435131,-500.0,0.00041095,7]
[357292619,1743989435141,-500.0,0.00041095,7]
[357292620,1743989435151,-500.0,0.00041095,7]
[357292621,1743989435160,-570.15,0.00041095,7]
[357292622,1743989435170,-513.05218367,0.00041095,7]
[357292623,1743989435179,-500.0,0.00041095,7]
[357292624,1743989435189,-500.0,0.00041095,7]
[357292625,1743989435199,-500.0,0.00041095,7]
[357292626,1743989435208,-500.0,0.00041095,7]
[357292627,1743989435217,-500.0,0.00041095,7]
[357292628,1743989435227,-500.0,0.00041095,7]
[357292629,1743989435237,-500.0,0.00041095,7]
[357292630,1743989435247,-500.0,0.00041095,7]
[357292631,1743989435257,-500.80028926,0.00041095,7]
[357292632,1743989435266,-500.0,0.00041095,7]
[357292633,1743989435275,-500.0,0.00041095,7]
[357292634,1743989435286,-193.78129567,0.00041095,7]
[357292635,1743989435295,-530.29563554,0.00041095,7]
[357292636,1743989435305,-500.0,0.00041095,7]
[357292637,1743989435315,-500.0,0.00041095,7]
[357292638,1743989435324,-500.0,0.00041095,7]
[357292639,1743989435333,-500.0,0.00041095,7]
[357292640,1743989435343,-640.73903059,0.00041095,7]
[357292641,1743989435353,-513.21753935,0.00041095,120]
[357292642,1743989435363,-500.0,0.00041095,7]
[357292643,1743989435372,-670.12,0.00041095,7]
[357292644,1743989435383,-500.0,0.00041095,7]
[357292645,1743989435393,-500.0,0.00041095,7]
[357292646,1743989435403,-500.0,0.00041095,7]
[357292647,1743989435412,-500.0,0.00041095,7]
[357292648,1743989435422,-500.0,0.00041095,7]
[357292649,1743989435432,-948.38,0.00041095,7]
[357292650,1743989435441,-649.67,0.00041095,7]
[357292651,1743989435451,-500.0,0.00041095,7]
[357292652,1743989435461,-500.0,0.00041095,7]
[357292653,1743989435471,-500.0,0.00041095,7]
[357292654,1743989435481,-500.0,0.00041095,7]
[357292655,1743989435491,-500.0,0.00041095,7]
[357292656,1743989435501,-500.0,0.00041095,7]
[357292657,1743989435511,-151.0,0.00041095,14]
[357292658,1743989435520,-151.0,0.00041095,14]
[357292659,1743989435531,-151.0,0.00041095,14]
[357292660,1743989435540,-386.17965417,0.00041095,7]
[357292661,1743989435551,-500.0,0.00041095,3]
[357292662,1743989435561,-500.0,0.00041095,7]
[357292663,1743989435571,-500.0,0.00041095,7]
[357292664,1743989435581,-200.0,0.00041095,7]
[357292665,1743989435591,-620.28681542,0.00041095,7]
[357292666,1743989435601,-694.1,0.00041095,7]
[357292667,1743989435611,-500.0,0.00041095,7]
[357292668,1743989435622,-502.75989816,0.00041095,7]
[357292669,1743989435631,-500.0,0.00041095,7]
[357292670,1743989435641,-522.3511717,0.00041095,7]
[357292671,1743989435651,-500.0,0.00041095,7]
[357292672,1743989435661,-500.0,0.00041095,7]
[357292673,1743989435671,-500.0,0.00041095,7]
[357292674,1743989435680,-500.0,0.00041095,7]
[357292675,1743989435690,-500.0,0.00041095,7]
[357292676,1743989435700,-629.95,0.00041095,7]
[357292677,1743989435710,-614.4,0.00041095,7]
[357292678,1743989435719,-513.14129771,0.00041095,7]
[357292679,1743989435729,-500.0,0.00041095,7]
[357292680,1743989435738,-500.55776719,0.00041095,7]
[357292681,1743989435748,-500.0,0.00041095,7]
[357292682,1743989435757,-500.0,0.00041095,7]
[357292683,1743989435767,-500.0,0.00041095,7]
[357292684,1743989435776,-500.0,0.00041095,7]
[357292685,1743989435785,-500.0,0.00041095,7]
[357292686,1743989435794,-500.0,0.00041095,7]
[357292687,1743989435804,-500.0,0.00041095,7]
[357292688,1743989435813,-500.0,0.00041095,7]
[357292689,1743989435822,-500.0,0.00041095,7]
[357292690,1743989435831,-500.0,0.00041095,7]
[357292691,1743989435841,-500.0,0.00041095,7]
[357292692,1743989435851,-500.0,0.00041095,7]
[357292693,1743989435861,-519.92342398,0.00041095,7]
[357292694,1743989435871,-500.0,0.00041095,7]
[357292695,1743989435880,-505.75330875,0.00041095,7]
[357292696,1743989435890,-500.0,0.00041095,7]
[357292697,1743989435901,-500.0,0.00041095,7]